bitfinex-derivatives/quotes_ETHF0:USTF0_20241231
["timestamp","ask_amount","ask_price","bid_price","bid_amount"]
[1735668727074,5.44387686,3371.8,3371.3,0.29704]
[1735668727378,0.29703,3371.5,3371.1,1.36]
[1735668727579,0.29703,3371.5,3371.2,0.29705]
[1735668727771,0.74573,3371.5,3371.2,0.29705]
[1735668728270,0.4487,3371.5,3371.1,1.36]
[1735668728471,0.4213,3371.6,3371.1,1.36]
[1735668728782,0.4213,3371.6,3371.5,0.29703]
[1735668729275,0.4487,3372.0,3371.2,2.97870686]
[1735668729471,0.4487,3372.0,3371.4,3.9504]
[1735668729674,0.4487,3372.0,3371.9,0.29699]
[1735668729875,0.4234,3372.2,3371.5,2.23607686]
[1735668730176,0.4234,3372.2,3372.1,0.29698]
[1735668730375,0.72037,3372.2,3372.1,0.29698]
[1735668730678,0.72037,3372.2,3372.0,0.29698]
[1735668730874,0.4234,3372.2,3371.4,3.9504]
[1735668731079,0.4234,3372.2,3371.9,0.29699]
[1735668731280,0.4234,3372.2,3371.4,3.2078]
[1735668731479,2.23607686,3372.1,3371.4,3.2078]
[1735668731775,3.2078,3372.3,3371.6,2.23607686]
[1735668731976,3.2078,3372.3,3372.2,0.29697]
[1735668732181,0.29696,3372.4,3372.2,0.29697]
[1735668732486,0.29698,3372.1,3371.9,1.65699]
[1735668732779,0.4344,3372.0,3371.9,1.65699]
[1735668733080,0.73139,3372.0,3371.9,1.36]
[1735668733482,0.297,3371.8,3371.7,0.29701]
[1735668734281,0.7177,3371.9,3371.7,0.29701]
[1735668735078,0.4207,3371.9,3371.4,3.2078]
[1735668735274,0.4207,3371.9,3371.8,0.297]
[1735668735474,3.6723,3372.3,3371.6,2.23607686]
[1735668735681,3.6723,3372.3,3371.7,0.74254]
[1735668735877,3.6723,3372.3,3372.1,0.29697]
[1735668736287,0.4645,3372.3,3372.2,0.29697]
[1735668736572,0.4645,3372.3,3371.8,3.9503]
[1735668736573,0.29697,3372.2,3372.1,0.29697]
[1735668736777,0.4645,3372.3,3371.8,3.6625]
[1735668736976,0.4645,3372.3,3372.2,0.29697]
[1735668737181,0.9,3372.7,3372.5,0.29693]
[1735668737376,1.19693,3372.7,3372.5,0.29693]
[1735668737780,0.4509,3372.7,3372.6,0.29693]
[1735668737985,3.638,3372.8,3372.7,0.29692]
[1735668738281,3.0407617,3373.1,3373.0,0.2969]
[1735668738485,2.7438717,3373.1,3372.2,5.44387686]
[1735668738686,4.97994856,3373.1,3372.2,3.2078]
[1735668739081,0.29692,3372.8,3372.2,3.95021]
[1735668739386,0.29691,3372.9,3372.8,0.29691]
[1735668739586,0.4491,3373.1,3372.2,6.18628686]
[1735668739983,0.29694,3372.6,3372.5,0.29694]
[1735668740287,3.2078,3372.8,3371.9,1.358]
[1735668740586,0.29695,3372.4,3372.2,0.29696]
[1735668740880,0.901,3372.5,3371.8,3.6625]
[1735668740881,0.29697,3372.2,3372.0,0.29698]
[1735668741087,0.29697,3372.2,3371.7,9.21235942]
[1735668741088,0.4198,3372.3,3371.7,6.97628256]
[1735668741281,0.29697,3372.2,3372.0,0.29698]
[1735668741785,0.29698,3372.1,3371.9,0.29699]
[1735668742082,0.4198,3372.3,3371.5,0.74257]
[1735668742285,0.4198,3372.3,3372.0,0.29698]
[1735668742286,0.29697,3372.2,3372.0,0.29698]
[1735668743082,0.29698,3372.1,3371.8,0.29699]
[1735668743284,0.4198,3372.3,3371.4,6.18646686]
[1735668743490,3.2078,3372.0,3371.4,3.2078]
[1735668743791,0.29701,3371.7,3371.5,0.29702]
[1735668744586,0.7548,3371.8,3371.6,0.29701]
[1735668744988,0.4578,3371.8,3371.7,0.29701]
[1735668745989,0.4578,3371.8,3371.5,0.29703]
[1735668746183,0.4578,3371.8,3371.7,0.29701]
[1735668748088,0.4198,3372.3,3371.7,0.74253]
[1735668748283,0.4198,3372.3,3371.6,2.23607686]
[1735668748490,0.29697,3372.2,3371.6,2.23607686]
[1735668748693,0.4198,3372.3,3371.6,2.23607686]
[1735668749790,0.4198,3372.3,3371.9,0.29699]
[1735668749791,0.29698,3372.1,3371.9,0.29699]
[1735668749989,0.4198,3372.3,3371.4,3.2078]
[1735668750294,0.4198,3372.3,3371.6,0.74256]
[1735668750591,0.29699,3372.0,3371.5,2.23607686]
[1735668750789,0.29698,3372.1,3371.9,0.29699]
[1735668751294,0.29699,3372.0,3371.8,0.297]
[1735668751495,0.29699,3371.9,3371.8,0.297]
[1735668751696,0.29699,3372.0,3371.8,0.297]
[1735668752099,0.4339,3371.9,3371.8,0.297]
[1735668752391,0.4339,3371.9,3371.5,2.23607686]
[1735668752392,0.4198,3372.3,3371.9,0.29699]
[1735668752698,0.29701,3371.8,3371.6,0.29701]
[1735668752904,3.95025,3372.1,3371.5,1.358]
[1735668753291,3.95025,3372.1,3371.5,1.65502]
[1735668753292,0.29701,3371.7,3371.5,1.65502]
[1735668754595,0.29701,3371.7,3371.5,0.29702]
[1735668755099,6.18632686,3372.1,3371.4,3.2078]
[1735668755292,1.3194,3371.6,3371.1,6.97628256]
[1735668755486,0.29706,3371.2,3371.1,6.97628256]
[1735668755690,0.29706,3371.2,3371.1,7.27334256]
[1735668755892,0.29705,3371.3,3371.1,7.27334256]
[1735668756096,0.29706,3371.2,3371.1,6.97628256]
[1735668756290,2.06198,3371.6,3371.1,6.97628256]
[1735668756497,0.29704,3371.4,3371.2,0.29705]
[1735668756700,1.61642,3371.6,3371.4,0.29703]
[1735668756891,1.3194,3371.6,3371.5,0.29703]
[1735668757902,1.61642,3371.6,3371.5,0.29703]
[1735668758096,1.3194,3371.6,3370.9,0.439]
[1735668758403,0.29705,3371.3,3371.2,0.29705]
[1735668758895,0.29704,3371.5,3371.4,0.29703]
[1735668760203,1.61643,3371.6,3371.5,0.29703]
[1735668761302,1.3194,3371.6,3371.1,0.74266]
[1735668761602,1.3194,3371.6,3371.4,0.29703]
[1735668761603,0.29704,3371.5,3371.4,0.29703]
[1735668762901,1.3194,3371.6,3371.5,0.29703]
[1735668763093,0.29704,3371.5,3371.4,0.29703]
[1735668763298,1.3194,3371.6,3371.1,0.74266]
[1735668763495,1.61643,3371.6,3371.5,0.29703]
[1735668764008,1.3194,3371.6,3371.5,0.29703]
[1735668764699,3.2078,3372.0,3371.9,0.29699]
[1735668765300,3.50479,3372.0,3371.9,0.29699]
[1735668765505,3.2078,3372.0,3371.9,0.29699]
[1735668766503,0.8866,3372.3,3371.9,0.29699]
[1735668766703,0.29698,3372.1,3372.0,0.29698]
[1735668767307,0.29697,3372.2,3372.1,0.29697]
[1735668767495,0.8866,3372.3,3371.7,0.428]
[1735668767697,0.29699,3372.0,3371.9,0.29699]
[1735668768005,0.8866,3372.3,3371.7,0.428]
[1735668768206,0.29698,3372.1,3372.0,0.29698]
[1735668768613,0.8866,3372.3,3371.7,0.428]
[1735668768811,3.12267686,3372.3,3371.6,3.2078]
[1735668769112,3.86509686,3372.3,3371.6,3.2078]
[1735668769305,0.29699,3372.0,3371.9,0.29699]
[1735668769503,0.29701,3371.8,3371.6,3.2078]
[1735668769702,0.74243,3372.2,3371.6,7.27330256]
[1735668769703,0.29701,3371.7,3371.6,7.27330256]
[1735668769911,0.29701,3371.7,3371.6,6.97628256]
[1735668771117,1.03948,3371.9,3371.4,0.29703]
[1735668771306,1.57643,3371.6,3371.2,9.21235942]
[1735668771514,0.29704,3371.4,3371.2,6.97628256]
[1735668771807,0.29704,3371.5,3371.2,6.97628256]
[1735668772006,0.29704,3371.5,3371.4,0.29704]
[1735668772406,1.57643,3371.6,3371.5,0.29703]
[1735668772602,1.2794,3371.6,3371.3,0.29704]
[1735668772911,1.2794,3371.6,3371.1,3.2078]
[1735668772912,1.2794,3371.6,3371.4,0.29703]
[1735668773109,1.57643,3371.6,3371.4,0.29703]
[1735668773410,2.2947717,3371.9,3371.3,2.23607686]
[1735668773608,2.2947717,3371.9,3371.8,2.53307686]
[1735668775410,3.50474,3372.5,3371.8,6.26130105]
[1735668775605,3.2078,3372.5,3372.2,0.29697]
[1735668775808,3.2078,3372.5,3372.0,3.2078]
[1735668776009,2.23607686,3372.2,3371.8,5.51880105]
[1735668776308,0.74468,3372.1,3371.8,5.81580105]
[1735668776504,0.4554,3372.0,3371.6,10.48109256]
[1735668776709,0.297,3371.9,3371.6,10.48109256]
[1735668776909,0.29701,3371.7,3371.6,10.18408256]
[1735668777326,0.9181,3372.0,3371.6,10.48110256]
[1735668777511,0.9181,3372.0,3371.7,0.29701]
[1735668777512,0.29699,3371.9,3371.7,0.29701]
[1735668778106,0.9181,3372.0,3371.6,3.2078]
[1735668778306,0.29699,3371.9,3371.7,0.29701]
[1735668778711,0.29699,3371.9,3371.7,0.297]
[1735668778913,0.29699,3371.9,3371.6,3.2078]
[1735668779209,1.21509,3372.0,3371.8,0.297]
[1735668780005,1.21509,3372.0,3371.9,0.29699]
[1735668780200,0.9181,3372.0,3371.9,0.29699]
[1735668781210,1.21509,3372.0,3371.6,3.2078]
[1735668781406,0.9181,3372.0,3371.9,0.29699]
[1735668781614,0.9181,3372.0,3371.6,3.2078]
[1735668781812,0.297,3371.8,3371.6,0.29702]
[1735668782014,3.2078,3371.9,3371.5,6.97628256]
[1735668782015,0.29702,3371.6,3371.5,6.97628256]
[1735668782413,0.29702,3371.6,3371.4,9.53553054]
[1735668782616,0.29703,3371.5,3371.4,9.23850054]
[1735668782811,0.73493,3371.5,3371.4,9.23850054]
[1735668783519,3.6457,3371.5,3371.0,6.99983944]
[1735668783714,0.29706,3371.1,3371.0,6.99983944]
[1735668784116,0.9143,3371.3,3371.0,6.99983944]
[1735668784316,0.29706,3371.1,3371.0,6.99983944]
[1735668784718,0.29706,3371.1,3370.6,3.2078]
[1735668784719,0.2971,3370.7,3370.6,3.2078]
[1735668785022,0.29708,3371.0,3370.8,0.29709]
[1735668785324,0.9143,3371.3,3370.6,3.2078]
[1735668785627,0.29709,3370.8,3370.6,3.5049]
[1735668786518,0.29709,3370.8,3370.6,0.2971]
[1735668786719,0.4527,3370.9,3370.4,6.99983944]
[1735668786720,0.29711,3370.6,3370.4,6.99983944]
[1735668786924,0.4527,3370.9,3370.4,6.99983944]
[1735668786925,0.29712,3370.5,3370.4,6.99983944]
[1735668787117,1.18502,3370.5,3370.4,6.99983944]
[1735668788020,1.18502,3370.5,3370.3,6.99983944]
[1735668788220,1.18502,3370.5,3370.3,7.29696944]
[1735668788525,1.18502,3370.5,3370.3,6.99983944]
[1735668788526,0.29713,3370.4,3370.3,6.99983944]
[1735668789226,5.29713,3370.4,3370.3,6.99983944]
[1735668789425,0.29715,3370.1,3370.0,6.99983944]
[1735668789616,5.74102686,3370.1,3370.0,6.99983944]
[1735668789822,10.74102686,3370.1,3370.0,6.99983944]
[1735668790122,18.27579546,3370.1,3370.0,6.01292691]
[1735668790428,18.27579546,3370.1,3370.0,1.55152691]
[1735668790820,5.74102686,3370.1,3370.0,1.55152691]
[1735668791021,8.88852312,3370.1,3369.7,0.29719]
[1735668791318,0.2972,3369.6,3369.5,0.2972]
[1735668791718,9.63141312,3370.1,3369.1,0.4467]
[1735668791719,8.88852312,3370.1,3369.1,0.4467]
[1735668791926,3.2078,3369.7,3369.1,0.4467]
[1735668792227,3.2078,3369.7,3368.9,0.2203]
[1735668792422,0.29723,3369.3,3369.0,0.29725]
[1735668792620,3.2078,3369.7,3369.1,0.29724]
[1735668792621,0.29724,3369.2,3369.1,0.29724]
[1735668792819,0.29725,3369.1,3369.0,0.29725]
[1735668793116,3.2078,3369.7,3368.9,0.2203]
[1735668793314,0.29723,3369.2,3369.1,0.29724]
[1735668793621,0.29725,3369.0,3368.9,0.2203]
[1735668793828,2.23607686,3369.2,3368.4,3.2078]
[1735668794118,0.29727,3368.8,3368.6,0.29728]
[1735668794316,2.68467686,3368.9,3368.6,0.29728]
[1735668794530,5.89247686,3368.9,3368.3,0.4463]
[1735668794826,0.29728,3368.7,3368.6,0.29728]
[1735668795014,5.89247686,3368.9,3368.3,0.4463]
[1735668795223,3.2078,3368.9,3368.8,0.29727]
[1735668795534,0.29725,3369.0,3368.9,0.29725]
[1735668795823,0.29725,3369.0,3368.8,0.29726]
[1735668796023,3.2078,3369.4,3368.4,4.5628]
[1735668796229,3.2078,3369.4,3368.4,5.30604]
[1735668796523,3.2078,3369.4,3368.4,4.5628]
[1735668796727,0.29725,3369.1,3369.0,0.29725]
[1735668797228,0.29724,3369.2,3369.0,0.29725]
[1735668797424,3.2078,3369.4,3368.4,5.30604]
[1735668797629,0.29725,3369.0,3368.9,0.29726]
[1735668798832,2.23607686,3369.3,3368.4,3.2078]
[1735668799130,0.29729,3368.6,3368.5,0.29729]
[1735668799318,0.29729,3368.6,3368.4,3.2078]
[1735668799319,5.44387686,3369.0,3368.3,0.4463]
[1735668799524,0.2973,3368.4,3368.3,0.74361]
[1735668799727,0.2973,3368.4,3368.3,0.4463]
[1735668800328,3.2078,3368.5,3367.9,0.4597]
[1735668800526,2.23607686,3368.3,3367.9,0.4597]
[1735668800729,0.29735,3367.9,3367.7,0.72576]
[1735668801119,0.443,3368.4,3367.7,0.4284]
[1735668801325,0.29732,3368.3,3368.0,0.29733]
[1735668801626,3.2078,3368.1,3367.7,0.4284]
[1735668801833,0.29735,3368.0,3367.8,0.29735]
[1735668802035,3.2078,3368.1,3368.0,0.29734]
[1735668802324,0.2973,3368.5,3368.3,0.29731]
[1735668802525,3.2078,3368.7,3368.0,3.2078]
[1735668802729,0.74313,3369.1,3367.8,0.7434]
[1735668802730,3.2078,3369.1,3368.3,2.23607686]
[1735668802926,3.2078,3369.1,3368.4,0.4523]
[1735668802927,0.29726,3369.0,3368.4,0.4523]
[1735668803133,3.2078,3369.1,3368.6,0.29728]
[1735668803134,0.29727,3368.9,3368.6,0.29728]
[1735668803325,0.29729,3368.5,3368.4,0.4523]
[1735668803533,0.4344,3368.8,3367.9,0.74337]
[1735668803733,0.29728,3368.7,3368.4,0.29729]
[1735668803931,0.29728,3368.7,3368.3,0.29731]
[1735668804233,2.67047686,3369.1,3368.0,0.4523]
[1735668804425,2.67047686,3369.1,3368.5,0.29729]
[1735668804633,3.2078,3368.6,3368.0,0.4523]
[1735668804829,0.29729,3368.5,3368.0,0.4523]
[1735668805030,0.2973,3368.5,3368.3,0.29731]
[1735668805228,3.50509,3368.6,3368.4,0.2973]
[1735668805729,3.50508,3368.6,3368.5,0.29729]
[1735668805931,0.2973,3368.5,3368.1,0.29733]
[1735668806125,0.2973,3368.5,3368.4,0.2973]
[1735668806331,3.2078,3368.6,3368.0,0.4523]
[1735668806639,3.50509,3368.6,3368.4,0.2973]
[1735668807031,3.50509,3368.6,3368.0,0.4523]
[1735668807227,0.2973,3368.5,3368.1,0.29733]
[1735668807537,0.29728,3368.7,3368.1,0.74333]
[1735668807728,0.4475,3368.9,3368.0,3.6601]
[1735668807935,0.29729,3368.6,3368.4,0.2973]
[1735668808129,0.2973,3368.5,3368.3,0.2973]
[1735668808432,3.6422,3369.1,3368.5,0.74324]
[1735668808633,3.2078,3369.1,3369.0,0.29725]
[1735668808834,3.2078,3369.1,3368.6,1.3536]
[1735668809036,3.50505,3369.1,3369.0,0.29725]
[1735668809239,3.50505,3369.1,3368.9,0.29726]
[1735668809240,0.29725,3369.0,3368.9,0.29726]
[1735668809537,0.29721,3369.4,3369.0,0.29725]
[1735668809733,0.4386,3369.5,3369.0,0.29725]
[1735668809734,0.29724,3369.2,3369.0,0.29725]
[1735668810034,0.29724,3369.1,3369.0,0.29725]
[1735668810237,0.29724,3369.1,3368.6,1.3536]
[1735668810436,0.29725,3369.0,3368.9,0.29725]
[1735668810835,0.4386,3369.5,3369.0,0.29724]
[1735668811035,0.29724,3369.1,3369.0,0.29724]
[1735668812333,0.29725,3369.0,3368.9,0.29726]
[1735668812834,0.29725,3369.1,3369.0,0.29724]
[1735668813033,0.4386,3369.5,3368.7,0.7432]
[1735668813436,0.29725,3369.0,3368.9,0.29726]
[1735668813635,0.29725,3369.0,3368.6,1.3536]
[1735668813636,3.2078,3369.2,3368.6,1.3536]
[1735668813835,0.29726,3368.9,3368.8,0.29727]
[1735668814244,3.2078,3369.2,3368.6,1.3536]
[1735668814638,3.95091,3369.2,3368.6,1.3536]
[1735668814940,0.29728,3368.7,3368.6,1.3536]
[1735668815329,0.29728,3368.6,3368.5,3.2078]
[1735668815933,2.23607686,3368.8,3368.3,0.9281]
[1735668816136,0.2973,3368.4,3368.2,0.72692]
[1735668816336,0.29728,3368.6,3368.3,0.2973]
[1735668816535,0.2973,3368.5,3368.3,0.2973]
[1735668816736,1.19285,3369.0,3368.2,0.4296]
[1735668817138,0.29731,3368.3,3368.2,0.4296]
[1735668817443,0.29733,3368.1,3368.0,0.9281]
[1735668817846,0.29735,3367.9,3367.8,0.4403]
[1735668818344,0.29735,3367.9,3367.4,0.427]
[1735668818345,0.29738,3367.5,3367.4,0.427]
[1735668818851,0.2974,3367.3,3367.2,0.4403]
[1735668819157,0.4371,3367.7,3367.2,0.4403]
[1735668819354,0.2974,3367.3,3367.2,0.4403]
[1735668819562,0.4371,3367.7,3367.2,0.4403]
[1735668819753,0.2974,3367.4,3367.2,0.4403]
[1735668819954,0.2974,3367.3,3367.2,0.4403]
[1735668820152,0.29741,3367.2,3367.1,3.2078]
[1735668820348,5.44387686,3367.3,3366.5,3.2078]
[1735668820651,0.29746,3366.7,3366.5,3.50527]
[1735668821061,0.4419,3367.1,3366.5,3.2078]
[1735668821256,0.29745,3366.8,3366.5,3.50527]
[1735668821457,0.4419,3367.1,3366.5,3.50527]
[1735668821657,0.29746,3366.7,3366.5,3.2078]
[1735668821860,0.29744,3366.9,3366.6,0.29746]
[1735668822060,0.29745,3366.7,3366.5,3.2078]
[1735668822362,0.4419,3367.1,3366.5,3.50526]
[1735668822553,0.4419,3367.1,3366.5,3.2078]
[1735668822756,0.29743,3367.0,3366.5,3.2078]
[1735668823057,0.4419,3367.1,3366.6,0.29746]
[1735668823259,0.4419,3367.1,3366.5,3.2078]
[1735668823454,3.2078,3366.9,3366.5,3.2078]
[1735668823661,0.29751,3366.1,3365.8,3.50533]
[1735668823850,0.2975,3366.2,3365.9,0.29751]
[1735668824565,0.29749,3366.3,3366.1,0.2975]
[1735668824756,3.2078,3366.5,3365.8,3.2078]
[1735668824963,3.2078,3366.5,3366.3,0.29748]
[1735668824964,3.50527,3366.5,3366.3,0.29748]
[1735668825259,3.50527,3366.5,3366.4,0.29748]
[1735668825461,3.2078,3366.5,3366.1,0.2975]
[1735668825754,3.2078,3366.5,3365.5,0.4566]
[1735668825954,0.29751,3366.0,3365.9,0.29752]
[1735668826154,3.2078,3366.5,3365.5,0.4566]
[1735668826350,3.2078,3366.5,3366.4,0.29748]
[1735668826760,3.6497,3367.1,3366.9,0.29743]
[1735668826959,3.6497,3367.1,3366.5,0.74366]
[1735668826960,3.6497,3367.1,3367.0,0.29743]
[1735668827361,3.18300845,3367.5,3367.4,0.29739]
[1735668827566,0.2974,3367.4,3367.3,0.2974]
[1735668827757,2.88561845,3367.5,3366.8,3.2078]
[1735668828158,0.2974,3367.3,3367.2,0.2974]
[1735668828460,2.88561845,3367.5,3366.5,0.89178811]
[1735668828763,0.29742,3367.1,3367.0,0.29742]
[1735668828958,0.29744,3366.9,3366.5,0.89178811]
[1735668829157,0.29744,3366.9,3366.8,0.29744]
[1735668829359,0.29742,3367.1,3367.0,0.29742]
[1735668829666,0.29743,3367.0,3366.9,0.29743]
[1735668829860,0.29744,3366.9,3366.8,0.29744]
[1735668830164,0.29743,3367.0,3366.9,0.29743]
[1735668830457,3.2078,3367.3,3366.5,0.89178811]
[1735668830878,0.29745,3366.8,3366.7,0.29745]
[1735668831261,0.29746,3366.7,3366.6,0.29746]
[1735668831765,0.29746,3366.7,3366.5,1.18924811]
[1735668831965,3.2078,3366.9,3366.5,1.18924811]
[1735668831966,3.2078,3366.9,3366.8,0.29744]
[1735668832165,3.50524,3366.9,3366.7,0.29745]
[1735668832363,3.50524,3366.9,3366.8,0.29744]
[1735668832364,3.2078,3366.9,3366.8,0.29744]
[1735668832667,0.29741,3367.3,3367.1,0.29742]
[1735668832869,0.29741,3367.3,3367.2,0.29741]
[1735668833467,3.2078,3367.4,3366.8,0.002]
[1735668834269,0.29741,3367.2,3367.1,0.29741]
[1735668834670,3.2078,3367.4,3366.8,0.002]
[1735668834966,0.29743,3366.9,3366.8,0.002]
[1735668835167,3.2078,3367.4,3366.8,0.002]
[1735668835362,0.29741,3367.3,3367.2,0.29741]
[1735668835561,3.2078,3367.4,3366.8,0.002]
[1735668835761,0.29741,3367.2,3367.0,0.29742]
[1735668836270,0.29742,3367.1,3367.0,0.29742]
[1735668836471,0.29743,3367.0,3366.9,0.29743]
[1735668838970,0.29743,3366.9,3366.8,0.29944]
[1735668839566,0.74351,3367.3,3366.8,0.002]
[1735668839766,0.29743,3367.0,3366.9,0.29743]
[1735668840471,0.74351,3367.3,3366.8,0.002]
[1735668840668,0.29743,3366.9,3366.8,0.29944]
[1735668840871,0.29743,3366.9,3366.8,0.002]
[1735668843378,2.24095425,3367.3,3366.8,0.002]
[1735668843577,0.29743,3366.9,3366.8,0.002]
[1735668843974,2.98447425,3367.3,3366.8,0.002]
[1735668844174,0.29743,3367.0,3366.8,0.29944]
[1735668844371,2.98447425,3367.3,3366.8,0.002]
[1735668844372,0.29743,3366.9,3366.8,0.002]
[1735668847381,3.50523,3366.9,3366.8,0.002]
[1735668851078,3.92773,3366.9,3366.8,0.002]
[1735668852480,3.2078,3367.7,3366.8,3.95341]
[1735668852788,0.2974,3367.3,3366.8,3.2098]
[1735668852981,2.24095425,3367.4,3366.9,1.14803]
[1735668853181,0.2974,3367.3,3366.9,1.14803]
[1735668853382,2.24095425,3367.4,3366.9,0.8506]
[1735668853588,0.29743,3367.1,3367.0,0.29743]
[1735668853783,0.29741,3367.2,3367.1,0.29741]
[1735668853983,0.29742,3367.1,3367.0,0.29742]
[1735668854485,0.29741,3367.2,3367.1,0.29742]
[1735668854679,0.29742,3367.2,3367.0,0.29743]
[1735668854882,0.29742,3367.2,3367.1,0.29742]
[1735668855287,2.24095425,3367.4,3366.9,0.8506]
[1735668855482,0.29742,3367.1,3367.0,0.29742]
[1735668855787,2.24095425,3367.4,3367.1,0.29742]
[1735668855989,0.29742,3367.2,3367.1,0.29742]
[1735668857285,3.2078,3367.3,3366.9,0.8506]
[1735668857491,2.53835425,3367.4,3367.3,0.2974]
[1735668857990,0.29739,3367.5,3367.4,0.29739]
[1735668858387,2.27738781,3368.2,3367.2,2.24095425]
[1735668858692,4.51834206,3368.2,3367.4,0.74348]
[1735668858992,0.29735,3367.9,3367.8,0.29735]
[1735668859289,0.29734,3368.0,3367.9,0.29734]
[1735668859481,4.51834206,3368.2,3367.1,1.20834]
[1735668859482,2.24095425,3368.2,3367.1,1.20834]
[1735668859684,0.29739,3367.5,3367.4,0.29738]
[1735668860178,0.29738,3367.6,3367.1,0.4648]
[1735668860382,0.2974,3367.3,3367.2,0.29741]
[1735668860586,5.44875425,3367.5,3367.2,0.29741]
[1735668860587,5.44875425,3367.5,3367.2,0.2974]
[1735668860788,5.74614425,3367.5,3367.3,0.2974]
[1735668860989,5.74614425,3367.5,3367.1,0.4648]
[1735668861180,0.29739,3367.5,3367.3,0.29739]
[1735668861385,2.68025425,3367.8,3367.1,0.4648]
[1735668861586,0.29739,3367.5,3367.1,0.4648]
[1735668861887,0.29738,3367.5,3367.4,0.29739]
[1735668862083,0.29738,3367.5,3367.3,0.29739]
[1735668862286,2.24095425,3367.5,3367.1,0.4648]
[1735668862488,0.29741,3367.2,3367.1,0.4648]
[1735668862685,0.29743,3367.0,3366.9,4.6374219]
[1735668862890,3.50523,3367.0,3366.9,4.6374219]
[1735668863283,5.44875425,3367.0,3366.8,0.002]
[1735668863596,0.29743,3366.9,3366.8,0.002]
[1735668864795,0.63075976,3366.9,3366.8,0.002]
[1735668865089,0.63075976,3366.9,3366.8,0.29944]
[1735668865290,0.33332976,3366.9,3366.8,0.29944]
[1735668865589,2.27738781,3367.0,3366.8,0.002]
[1735668865797,5.69346952,3367.1,3366.8,3.2098]
[1735668865996,2.27738781,3367.1,3367.0,0.29743]
[1735668866590,0.29743,3366.9,3366.8,0.002]
[1735668866898,3.50519,3367.4,3367.2,0.2974]
[1735668867085,3.2078,3367.4,3367.3,0.2974]
[1735668867389,2.27738781,3367.6,3367.5,0.29738]
[1735668868093,2.27738781,3367.6,3367.5,0.73078]
[1735668868488,2.27738781,3367.6,3367.2,3.2078]
[1735668868797,0.29738,3367.5,3367.4,6.97458757]
[1735668869495,3.50518,3367.5,3367.4,6.97458757]
[1735668869990,0.2974,3367.3,3366.8,0.002]
[1735668870392,0.2974,3367.3,3367.0,0.29742]
[1735668870790,3.2078,3367.5,3366.8,0.002]
[1735668870993,0.2974,3367.4,3366.9,0.29743]
[1735668871293,0.2974,3367.3,3367.1,0.29742]
[1735668871494,2.24095425,3367.6,3366.8,0.002]
[1735668871690,0.2974,3367.4,3367.2,0.29741]
[1735668872088,0.2974,3367.3,3367.1,0.29741]
[1735668872293,0.29741,3367.2,3367.1,0.29741]
[1735668872492,0.2974,3367.3,3367.1,0.29741]
[1735668873195,0.29741,3367.2,3367.0,0.29742]
[1735668873391,0.29741,3367.2,3366.9,4.67229509]
[1735668873693,0.29741,3367.3,3367.1,0.29742]
[1735668873989,0.29741,3367.2,3367.1,4.67229509]
[1735668874294,0.2974,3367.3,3367.2,0.29741]
[1735668874492,0.2974,3367.3,3367.2,0.73351]
[1735668877492,2.27738781,3367.4,3367.0,4.67229509]
[1735668877698,0.29742,3367.1,3367.0,4.67229509]
[1735668878392,0.29742,3367.1,3367.0,4.96972509]
[1735668878595,2.27738781,3367.4,3367.0,4.67229509]
[1735668878801,2.27738781,3367.4,3367.1,0.4422]
[1735668879094,0.2974,3367.3,3367.2,0.29741]
[1735668879295,0.2974,3367.3,3367.2,0.72041]
[1735668879692,0.2974,3367.3,3367.2,0.423]
[1735668880296,0.29742,3367.1,3367.0,6.97458757]
[1735668880491,0.29741,3367.2,3367.1,0.29741]
[1735668880692,0.29742,3367.1,3367.0,6.97458757]
[1735668881799,0.29743,3366.9,3366.8,5.09995984]
[1735668882697,0.29742,3367.1,3366.8,5.09995984]
[1735668882899,2.27738781,3367.2,3367.1,0.29742]
[1735668883899,2.27738781,3367.2,3367.1,3.50522]
[1735668884697,2.27738781,3367.7,3367.1,15.84119832]
[1735668884999,0.29738,3367.6,3367.4,0.29739]
[1735668885389,0.29738,3367.6,3367.5,0.29738]
[1735668885592,2.57475781,3367.7,3367.6,0.29737]
[1735668885798,0.29737,3367.7,3367.6,0.29737]
[1735668886102,0.29737,3367.7,3367.4,0.29739]
[1735668886303,0.29737,3367.7,3367.6,0.29737]
[1735668887195,3.2078,3367.9,3367.7,0.29736]
[1735668887401,0.29736,3367.7,3367.6,0.29736]
[1735668888093,3.2078,3367.9,3367.5,4.97085419]
[1735668888299,0.29737,3367.7,3367.6,0.29737]
[1735668889895,3.2078,3367.9,3367.5,4.67347419]
[1735668890099,0.29736,3367.8,3367.7,0.29736]
[1735668890298,0.29736,3367.7,3367.6,0.29737]
[1735668892002,5.48518781,3367.9,3367.4,0.9105]
[1735668892003,5.48518781,3367.9,3367.8,0.29736]
[1735668892705,3.2078,3367.9,3367.8,0.29736]
[1735668892905,2.27738781,3368.0,3367.9,0.29735]
[1735668893297,2.27738781,3368.0,3367.9,3.50515]
[1735668893901,2.27738781,3368.0,3367.9,8.50515]
[1735668894103,3.41608171,3368.2,3367.9,8.2078]
[1735668894304,3.41608171,3368.2,3368.1,2.53828425]
[1735668894506,2.30348351,3368.5,3368.4,0.2973]
[1735668895605,2.30348351,3368.5,3368.4,0.32668043]
[1735668895899,0.29727,3368.8,3368.4,0.02938043]
[1735668896105,0.29727,3368.8,3368.6,0.29728]
[1735668896300,3.6453,3368.9,3368.4,0.02938043]
[1735668896503,0.4375,3368.9,3368.8,0.29727]
[1735668896905,0.4213,3369.2,3368.8,1.352]
[1735668897408,2.53819425,3369.1,3369.0,0.02938043]